[Event "Titled Tuesday Blitz July 13 2021"]
[White "Turzo, Attila"]
[Black "Onyshchuk, Volodymyr"]
[WhiteFideId "704954"]
[BlackFideId "14114038"]
[WhiteElo "2437"]
[BlackElo "2603"]
[Result "0-1"]
[Round "03"]
[TimeControl "180+1"]
[Date "2021.07.13"]
[WhiteClock "0:00:12"]
[BlackClock "0:00:27"]

1. d4 {[%clk 0:03:00]}  d6 {[%clk 0:02:57]} 2. e4 {[%clk 0:02:58]}  Nf6 {[%clk 0:02:57]} 3. Nc3 {[%clk 0:02:58]}  g6 {[%clk 0:02:57]} 4. Nf3 {[%clk 0:02:56]}  Bg7 {[%clk 0:02:57]} 5. h3 {[%clk 0:02:56]}  O-O {[%clk 0:02:57]} 6. Be3 {[%clk 0:02:57]}  d5 {[%clk 0:02:57]} 7. exd5 {[%clk 0:02:46]}  Nxd5 {[%clk 0:02:56]} 8. Nxd5 {[%clk 0:02:47]}  Qxd5 {[%clk 0:02:56]} 9. Qd2 {[%clk 0:02:32]}  c5 {[%clk 0:02:43]} 10. c3 {[%clk 0:02:28]}  cxd4 {[%clk 0:02:41]} 11. Bxd4 {[%clk 0:02:26]}  Bxd4 {[%clk 0:02:26]} 12. Qxd4 {[%clk 0:02:24]}  Be6 {[%clk 0:02:23]} 13. Qxd5 {[%clk 0:02:21]}  Bxd5 {[%clk 0:02:23]} 14. Be2 {[%clk 0:02:15]}  Nc6 {[%clk 0:02:23]} 15. O-O {[%clk 0:02:12]}  Rfd8 {[%clk 0:02:23]} 16. Rfd1 {[%clk 0:02:11]}  e5 {[%clk 0:02:22]} 17. Nd2 {[%clk 0:02:01]}  f6 {[%clk 0:02:17]} 18. Nc4 {[%clk 0:01:58]}  Kf7 {[%clk 0:02:12]} 19. Ne3 {[%clk 0:01:57]}  Be6 {[%clk 0:02:11]} 20. Bc4 {[%clk 0:01:54]}  f5 {[%clk 0:02:10]} 21. Kf1 {[%clk 0:01:48]}  f4 {[%clk 0:02:09]} 22. Bxe6+ {[%clk 0:01:46]}  Kxe6 {[%clk 0:02:09]} 23. Nc4 {[%clk 0:01:45]}  e4 {[%clk 0:02:03]} 24. Ke2 {[%clk 0:01:37]}  h5 {[%clk 0:01:55]} 25. h4 {[%clk 0:01:34]}  b5 {[%clk 0:01:45]} 26. Na3 {[%clk 0:01:28]}  a6 {[%clk 0:01:43]} 27. Nc2 {[%clk 0:01:27]}  Kf5 {[%clk 0:01:42]} 28. g3 {[%clk 0:01:19]}  f3+ {[%clk 0:01:15]} 29. Ke1 {[%clk 0:01:10]}  Ne5 {[%clk 0:01:12]} 30. Ne3+ {[%clk 0:01:09]}  Ke6 {[%clk 0:01:11]} 31. b3 {[%clk 0:00:58]}  Nd3+ {[%clk 0:01:09]} 32. Kf1 {[%clk 0:00:57]}  Rac8 {[%clk 0:01:08]} 33. c4 {[%clk 0:00:57]}  Ke5 {[%clk 0:00:59]} 34. Rd2 {[%clk 0:00:51]}  Nb4 {[%clk 0:00:43]} 35. Rad1 {[%clk 0:00:49]}  Rxd2 {[%clk 0:00:42]} 36. Rxd2 {[%clk 0:00:50]}  Nd3 {[%clk 0:00:42]} 37. Rc2 {[%clk 0:00:44]}  b4 {[%clk 0:00:39]} 38. Rd2 {[%clk 0:00:43]}  Kd4 {[%clk 0:00:37]} 39. Nd1 {[%clk 0:00:40]}  a5 {[%clk 0:00:36]} 40. a3 {[%clk 0:00:40]}  a4 {[%clk 0:00:31]} 41. axb4 {[%clk 0:00:30]}  axb3 {[%clk 0:00:31]} 42. c5 {[%clk 0:00:27]}  Kc4 {[%clk 0:00:30]} 43. Ne3+ {[%clk 0:00:19]}  Kxb4 {[%clk 0:00:30]} 44. Nd5+ {[%clk 0:00:15]}  Ka3 {[%clk 0:00:29]} 45. Rd1 {[%clk 0:00:14]}  b2 {[%clk 0:00:29]} 46. Nc3 {[%clk 0:00:12]}  Rxc5 {[%clk 0:00:28]} 47. Nxe4 {[%clk 0:00:12]}  Rc1 {[%clk 0:00:27]} 0-1


[Site "https://www.chess.com"]

[Event "Titled Tuesday Blitz July 13 2021"]
[White "Wong, Yinn Long"]
[Black "Matinian, Nikita"]
[WhiteFideId "5707684"]
[BlackFideId "24129100"]
[WhiteElo "2016"]
[BlackElo "2410"]
[Result "0-1"]
[Round "03"]
[TimeControl "180+1"]
[Date "2021.07.13"]
[WhiteClock "0:00:02"]
[BlackClock "0:00:39"]

1. d4 {[%clk 0:03:00]}  d6 {[%clk 0:03:00]} 2. e4 {[%clk 0:03:00]}  g6 {[%clk 0:03:00]} 3. Nc3 {[%clk 0:03:00]}  a6 {[%clk 0:03:00]} 4. a4 {[%clk 0:02:56]}  Bg7 {[%clk 0:03:00]} 5. Nf3 {[%clk 0:02:56]}  Nc6 {[%clk 0:02:59]} 6. Be2 {[%clk 0:02:56]}  Bg4 {[%clk 0:02:59]} 7. d5 {[%clk 0:02:55]}  Bxf3 {[%clk 0:02:59]} 8. Bxf3 {[%clk 0:02:56]}  Nd4 {[%clk 0:02:56]} 9. Be3 {[%clk 0:02:52]}  Nxf3+ {[%clk 0:02:56]} 10. Qxf3 {[%clk 0:02:52]}  Nf6 {[%clk 0:02:57]} 11. a5 {[%clk 0:02:47]}  O-O {[%clk 0:02:57]} 12. O-O {[%clk 0:02:45]}  Rc8 {[%clk 0:02:54]} 13. Rfd1 {[%clk 0:02:43]}  Qd7 {[%clk 0:02:48]} 14. Bd4 {[%clk 0:02:32]}  c6 {[%clk 0:02:44]} 15. Na4 {[%clk 0:01:57]}  Qg4 {[%clk 0:02:31]} 16. Qxg4 {[%clk 0:01:26]}  Nxg4 {[%clk 0:02:31]} 17. Nb6 {[%clk 0:01:20]}  Rc7 {[%clk 0:02:23]} 18. Bxg7 {[%clk 0:01:20]}  Kxg7 {[%clk 0:02:24]} 19. h3 {[%clk 0:01:19]}  Nf6 {[%clk 0:02:22]} 20. dxc6 {[%clk 0:00:53]}  Rxc6 {[%clk 0:02:23]} 21. c4 {[%clk 0:00:53]}  Nxe4 {[%clk 0:02:21]} 22. Re1 {[%clk 0:00:54]}  Nc5 {[%clk 0:02:07]} 23. b4 {[%clk 0:00:38]}  Ne6 {[%clk 0:02:01]} 24. b5 {[%clk 0:00:37]}  Rc7 {[%clk 0:01:56]} 25. Reb1 {[%clk 0:00:25]}  Nf4 {[%clk 0:01:49]} 26. Kf1 {[%clk 0:00:20]}  h5 {[%clk 0:01:48]} 27. Ra3 {[%clk 0:00:18]}  h4 {[%clk 0:01:47]} 28. Rf3 {[%clk 0:00:18]}  g5 {[%clk 0:01:45]} 29. Rfb3 {[%clk 0:00:14]}  f5 {[%clk 0:01:38]} 30. f3 {[%clk 0:00:13]}  Rd8 {[%clk 0:01:30]} 31. Rb4 {[%clk 0:00:10]}  Rc5 {[%clk 0:01:26]} 32. Na4 {[%clk 0:00:09]}  Rc7 {[%clk 0:01:21]} 33. Nb6 {[%clk 0:00:10]}  Kf7 {[%clk 0:01:20]} 34. R4b3 {[%clk 0:00:08]}  Rg8 {[%clk 0:01:17]} 35. Kf2 {[%clk 0:00:08]}  e6 {[%clk 0:01:07]} 36. Rd1 {[%clk 0:00:07]}  Ke7 {[%clk 0:01:07]} 37. bxa6 {[%clk 0:00:06]}  bxa6 {[%clk 0:01:06]} 38. Rb4 {[%clk 0:00:07]}  e5 {[%clk 0:01:00]} 39. Rb3 {[%clk 0:00:07]}  g4 {[%clk 0:01:00]} 40. fxg4 {[%clk 0:00:07]}  fxg4 {[%clk 0:01:01]} 41. Rg1 {[%clk 0:00:03]}  Ke6 {[%clk 0:00:55]} 42. hxg4 {[%clk 0:00:03]}  Rxg4 {[%clk 0:00:56]} 43. Re3 {[%clk 0:00:03]}  Rcg7 {[%clk 0:00:54]} 44. Rh1 {[%clk 0:00:01]}  Rxg2+ {[%clk 0:00:53]} 45. Kf3 {[%clk 0:00:02]}  R7g3+ {[%clk 0:00:49]} 46. Ke4 {[%clk 0:00:02]}  Rg4 {[%clk 0:00:43]} 47. Kf3 {[%clk 0:00:02]}  h3 {[%clk 0:00:40]} 48. c5 {[%clk 0:00:02]}  d5 {[%clk 0:00:39]} 49. c6 {[%clk 0:00:02]}  R4g3# {[%clk 0:00:39]} 0-1


[Site "https://www.chess.com"]

[Event "Titled Tuesday Blitz July 13 2021"]
[White "Yanchenko, Roman"]
[Black "Estrada Nieto, Julian"]
[WhiteFideId "4137329"]
[BlackFideId "5101018"]
[WhiteElo "2514"]
[BlackElo "2270"]
[Result "1-0"]
[Round "03"]
[TimeControl "180+1"]
[Date "2021.07.13"]
[WhiteClock "0:00:18"]
[BlackClock "0:00:11"]

1. d4 {[%clk 0:03:00]}  d5 {[%clk 0:02:58]} 2. c4 {[%clk 0:03:00]}  dxc4 {[%clk 0:02:59]} 3. Nc3 {[%clk 0:03:00]}  a6 {[%clk 0:02:58]} 4. Nf3 {[%clk 0:03:00]}  Nf6 {[%clk 0:02:51]} 5. Bg5 {[%clk 0:02:18]}  Bg4 {[%clk 0:02:47]} 6. a4 {[%clk 0:02:15]}  Nc6 {[%clk 0:02:46]} 7. e3 {[%clk 0:02:15]}  Na5 {[%clk 0:02:43]} 8. h3 {[%clk 0:02:10]}  Bxf3 {[%clk 0:02:40]} 9. Qxf3 {[%clk 0:02:11]}  e6 {[%clk 0:02:40]} 10. Be2 {[%clk 0:02:00]}  Be7 {[%clk 0:02:40]} 11. O-O {[%clk 0:01:59]}  O-O {[%clk 0:02:40]} 12. Bxf6 {[%clk 0:01:54]}  Bxf6 {[%clk 0:02:39]} 13. Rad1 {[%clk 0:01:51]}  c6 {[%clk 0:02:17]} 14. Ne4 {[%clk 0:01:25]}  Be7 {[%clk 0:02:15]} 15. Nd2 {[%clk 0:01:24]}  Qb6 {[%clk 0:01:49]} 16. Nxc4 {[%clk 0:01:18]}  Nxc4 {[%clk 0:01:48]} 17. Bxc4 {[%clk 0:01:19]}  Qxb2 {[%clk 0:01:46]} 18. Rb1 {[%clk 0:00:58]}  Qc2 {[%clk 0:01:34]} 19. Rxb7 {[%clk 0:00:59]}  Qxc4 {[%clk 0:01:27]} 20. Rxe7 {[%clk 0:00:59]}  Qxa4 {[%clk 0:01:26]} 21. Rb1 {[%clk 0:00:59]}  Qa2 {[%clk 0:01:10]} 22. Rbb7 {[%clk 0:00:58]}  Qd5 {[%clk 0:01:06]} 23. Rxf7 {[%clk 0:00:56]}  Qg5 {[%clk 0:00:49]} 24. Rxf8+ {[%clk 0:00:35]}  Rxf8 {[%clk 0:00:47]} 25. Qxc6 {[%clk 0:00:36]}  Qf6 {[%clk 0:00:37]} 26. f4 {[%clk 0:00:30]}  a5 {[%clk 0:00:36]} 27. Rb5 {[%clk 0:00:24]}  a4 {[%clk 0:00:27]} 28. Ra5 {[%clk 0:00:24]}  Qg6 {[%clk 0:00:19]} 29. Rxa4 {[%clk 0:00:23]}  Rb8 {[%clk 0:00:16]} 30. Kh2 {[%clk 0:00:22]}  h6 {[%clk 0:00:16]} 31. d5 {[%clk 0:00:17]}  h5 {[%clk 0:00:17]} 32. Qxe6+ {[%clk 0:00:16]}  Qxe6 {[%clk 0:00:14]} 33. dxe6 {[%clk 0:00:17]}  Re8 {[%clk 0:00:13]} 34. f5 {[%clk 0:00:17]}  g6 {[%clk 0:00:13]} 35. e4 {[%clk 0:00:17]}  gxf5 {[%clk 0:00:13]} 36. exf5 {[%clk 0:00:18]}  Kg7 {[%clk 0:00:13]} 37. g4 {[%clk 0:00:18]}  Kf6 {[%clk 0:00:13]} 38. Kg3 {[%clk 0:00:17]}  hxg4 {[%clk 0:00:12]} 39. hxg4 {[%clk 0:00:18]}  Rb8 {[%clk 0:00:11]} 40. Kf4 {[%clk 0:00:17]}  Rc8 {[%clk 0:00:11]} 41. g5+ {[%clk 0:00:18]} 1-0


[Site "https://www.chess.com"]

[Event "Titled Tuesday Blitz July 13 2021"]
[White "Yoo, Christopher Woojin"]
[Black "Matveev, Vladimir"]
[WhiteFideId "30909694"]
[BlackFideId "24130753"]
[WhiteElo "2105"]
[BlackElo "2354"]
[Result "1-0"]
[Round "03"]
[TimeControl "180+1"]
[Date "2021.07.13"]
[WhiteClock "0:01:16"]
[BlackClock "0:01:51"]

1. e4 {[%clk 0:03:00]}  c5 {[%clk 0:03:00]} 2. Nc3 {[%clk 0:02:59]}  d6 {[%clk 0:03:00]} 3. Bb5+ {[%clk 0:02:58]}  Nd7 {[%clk 0:03:00]} 4. d4 {[%clk 0:02:57]}  cxd4 {[%clk 0:03:00]} 5. Qxd4 {[%clk 0:02:58]}  e5 {[%clk 0:02:59]} 6. Qd3 {[%clk 0:02:57]}  a6 {[%clk 0:02:59]} 7. Bxd7+ {[%clk 0:02:57]}  Bxd7 {[%clk 0:03:00]} 8. Be3 {[%clk 0:02:50]}  Be6 {[%clk 0:02:53]} 9. Nd5 {[%clk 0:02:49]}  Bxd5 {[%clk 0:02:53]} 10. Qxd5 {[%clk 0:02:47]}  Nf6 {[%clk 0:02:52]} 11. Qxb7 {[%clk 0:02:43]}  Be7 {[%clk 0:02:46]} 12. Qc6+ {[%clk 0:02:28]}  Nd7 {[%clk 0:02:42]} 13. Ne2 {[%clk 0:02:26]}  O-O {[%clk 0:02:42]} 14. Nc3 {[%clk 0:02:25]}  Nf6 {[%clk 0:02:31]} 15. O-O {[%clk 0:02:24]}  Qb8 {[%clk 0:02:31]} 16. Rab1 {[%clk 0:02:20]}  Rc8 {[%clk 0:02:31]} 17. Qa4 {[%clk 0:02:20]}  Qb7 {[%clk 0:02:20]} 18. Rfd1 {[%clk 0:02:12]}  Rab8 {[%clk 0:02:15]} 19. Nd5 {[%clk 0:02:02]}  Nxd5 {[%clk 0:02:11]} 20. Rxd5 {[%clk 0:01:59]}  Qb4 {[%clk 0:02:09]} 21. Qxb4 {[%clk 0:01:18]}  Rxb4 {[%clk 0:02:10]} 22. c3 {[%clk 0:01:17]}  Rxc3 {[%clk 0:01:55]} 23. Bd2 {[%clk 0:01:17]}  Rcc4 {[%clk 0:01:51]} 24. Bxb4 {[%clk 0:01:16]}  Rxb4 {[%clk 0:01:51]} 25. f3 {[%clk 0:01:16]} 1-0


[Site "https://www.chess.com"]

[Event "Titled Tuesday Blitz July 13 2021"]
[White "Zia, Tahsin Tajwar"]
[Black "Sydoryka, Vladyslav"]
[WhiteFideId "10211888"]
[BlackFideId "14145928"]
[WhiteElo "1800"]
[BlackElo "2200"]
[Result "0-1"]
[Round "03"]
[TimeControl "180+1"]
[Date "2021.07.13"]
[WhiteClock "0:00:06"]
[BlackClock "0:01:18"]

1. d4 {[%clk 0:03:00]}  Nf6 {[%clk 0:02:59]} 2. Bf4 {[%clk 0:03:00]}  d5 {[%clk 0:02:56]} 3. e3 {[%clk 0:03:00]}  c5 {[%clk 0:02:55]} 4. Nf3 {[%clk 0:02:58]}  Nc6 {[%clk 0:02:53]} 5. Nbd2 {[%clk 0:02:58]}  cxd4 {[%clk 0:02:51]} 6. exd4 {[%clk 0:02:58]}  Bg4 {[%clk 0:02:52]} 7. Bb5 {[%clk 0:02:52]}  e6 {[%clk 0:02:50]} 8. c4 {[%clk 0:02:49]}  dxc4 {[%clk 0:02:44]} 9. Qa4 {[%clk 0:02:49]}  Bxf3 {[%clk 0:02:40]} 10. Nxf3 {[%clk 0:02:48]}  Rc8 {[%clk 0:02:33]} 11. O-O {[%clk 0:02:13]}  Nd5 {[%clk 0:02:17]} 12. Bg5 {[%clk 0:02:00]}  Be7 {[%clk 0:02:16]} 13. Bxe7 {[%clk 0:01:58]}  Nxe7 {[%clk 0:02:14]} 14. Qxa7 {[%clk 0:01:48]}  O-O {[%clk 0:02:12]} 15. Bxc6 {[%clk 0:01:42]}  Rxc6 {[%clk 0:02:03]} 16. Qxb7 {[%clk 0:01:42]}  Rb6 {[%clk 0:02:03]} 17. Qe4 {[%clk 0:01:24]}  Rxb2 {[%clk 0:02:03]} 18. Rfc1 {[%clk 0:01:25]}  Nf5 {[%clk 0:01:52]} 19. Rxc4 {[%clk 0:01:02]}  Nd6 {[%clk 0:01:51]} 20. Qc6 {[%clk 0:00:53]}  Nxc4 {[%clk 0:01:48]} 21. Qxc4 {[%clk 0:00:54]}  Qa5 {[%clk 0:01:47]} 22. h4 {[%clk 0:00:51]}  h6 {[%clk 0:01:45]} 23. a4 {[%clk 0:00:44]}  Rfb8 {[%clk 0:01:44]} 24. Ne5 {[%clk 0:00:40]}  Qd2 {[%clk 0:01:39]} 25. Rf1 {[%clk 0:00:32]}  Rb1 {[%clk 0:01:26]} 26. a5 {[%clk 0:00:20]}  Rxf1+ {[%clk 0:01:20]} 27. Qxf1 {[%clk 0:00:21]}  Rc8 {[%clk 0:01:19]} 28. a6 {[%clk 0:00:05]}  Rc1 {[%clk 0:01:18]} 29. a7 {[%clk 0:00:06]}  Rxf1+ {[%clk 0:01:18]} 0-1


[Site "https://www.chess.com"]

[Event "Titled Tuesday Blitz July 13 2021"]
[White "AleksanderHnydiuk"]
[Black "Shuvalov, Evgenij"]
[BlackFideId "4187237"]
[WhiteElo "2594"]
[BlackElo "2163"]
[Result "1-0"]
[Round "04"]
[TimeControl "180+1"]
[Date "2021.07.13"]
[WhiteClock "0:00:08"]
[BlackClock "0:00:05"]

1. Nf3 {[%clk 0:03:00]}  Nf6 {[%clk 0:02:53]} 2. c4 {[%clk 0:03:00]}  c6 {[%clk 0:02:53]} 3. g3 {[%clk 0:02:57]}  d5 {[%clk 0:02:52]} 4. b3 {[%clk 0:02:56]}  g6 {[%clk 0:02:52]} 5. Bb2 {[%clk 0:02:54]}  Bg7 {[%clk 0:02:52]} 6. Bg2 {[%clk 0:02:55]}  Qb6 {[%clk 0:02:52]} 7. Qc2 {[%clk 0:02:43]}  O-O {[%clk 0:02:34]} 8. O-O {[%clk 0:02:43]}  Bf5 {[%clk 0:02:29]} 9. d3 {[%clk 0:02:42]}  Nbd7 {[%clk 0:02:23]} 10. Nbd2 {[%clk 0:02:42]}  a5 {[%clk 0:02:19]} 11. h3 {[%clk 0:02:33]}  Nb8 {[%clk 0:01:58]} 12. e4 {[%clk 0:02:15]}  dxe4 {[%clk 0:01:52]} 13. dxe4 {[%clk 0:02:16]}  Bc8 {[%clk 0:01:51]} 14. c5 {[%clk 0:02:03]}  Qa7 {[%clk 0:01:45]} 15. Rac1 {[%clk 0:01:47]}  Na6 {[%clk 0:01:45]} 16. Bd4 {[%clk 0:01:43]}  Nd7 {[%clk 0:01:44]} 17. Bxg7 {[%clk 0:01:33]}  Kxg7 {[%clk 0:01:43]} 18. Qc3+ {[%clk 0:01:33]}  Kg8 {[%clk 0:01:38]} 19. Qxa5 {[%clk 0:01:27]}  Naxc5 {[%clk 0:01:35]} 20. Qc3 {[%clk 0:01:17]}  Ne6 {[%clk 0:01:12]} 21. h4 {[%clk 0:01:16]}  Nf6 {[%clk 0:01:03]} 22. Rfe1 {[%clk 0:00:55]}  Ng4 {[%clk 0:00:54]} 23. Re2 {[%clk 0:00:50]}  Qxa2 {[%clk 0:00:47]} 24. h5 {[%clk 0:00:48]}  Qa5 {[%clk 0:00:36]} 25. hxg6 {[%clk 0:00:38]}  hxg6 {[%clk 0:00:34]} 26. b4 {[%clk 0:00:37]}  Qh5 {[%clk 0:00:33]} 27. Nc4 {[%clk 0:00:24]}  f6 {[%clk 0:00:20]} 28. Rd2 {[%clk 0:00:16]}  Kf7 {[%clk 0:00:19]} 29. Nb6 {[%clk 0:00:13]}  Rb8 {[%clk 0:00:18]} 30. Qc4 {[%clk 0:00:12]}  Rh8 {[%clk 0:00:17]} 31. Kf1 {[%clk 0:00:12]}  g5 {[%clk 0:00:09]} 32. Rcd1 {[%clk 0:00:11]}  Nh2+ {[%clk 0:00:08]} 33. Nxh2 {[%clk 0:00:11]}  Qxh2 {[%clk 0:00:09]} 34. Bf3 {[%clk 0:00:10]}  g4 {[%clk 0:00:08]} 35. Bxg4 {[%clk 0:00:09]}  Qh1+ {[%clk 0:00:08]} 36. Ke2 {[%clk 0:00:09]}  Qg2 {[%clk 0:00:08]} 37. Nxc8 {[%clk 0:00:08]}  Rbxc8 {[%clk 0:00:07]} 38. Bxe6+ {[%clk 0:00:08]}  Kg7 {[%clk 0:00:08]} 39. Bxc8 {[%clk 0:00:08]}  Rxc8 {[%clk 0:00:08]} 40. Qe6 {[%clk 0:00:08]}  Re8 {[%clk 0:00:08]} 41. Rd7 {[%clk 0:00:08]}  Kf8 {[%clk 0:00:08]} 42. Rd8 {[%clk 0:00:08]}  c5 {[%clk 0:00:04]} 43. Rxe8+ {[%clk 0:00:08]}  Kxe8 {[%clk 0:00:05]} 44. Qg8# {[%clk 0:00:08]} 1-0


[Site "https://www.chess.com"]

[Event "Titled Tuesday Blitz July 13 2021"]
[White "Bersamina, Paulo"]
[Black "Boidiya, Sidi"]
[WhiteFideId "5206995"]
[BlackFideId "19600100"]
[WhiteElo "2349"]
[BlackElo "2113"]
[Result "0-1"]
[Round "04"]
[TimeControl "180+1"]
[Date "2021.07.13"]
[WhiteClock "0:01:05"]
[BlackClock "0:01:31"]

1. e4 {[%clk 0:03:00]}  c5 {[%clk 0:02:59]} 2. Nf3 {[%clk 0:02:57]}  e6 {[%clk 0:02:59]} 3. g3 {[%clk 0:02:56]}  Nc6 {[%clk 0:02:58]} 4. Bg2 {[%clk 0:02:56]}  Nf6 {[%clk 0:02:56]} 5. Qe2 {[%clk 0:02:57]}  d6 {[%clk 0:02:56]} 6. O-O {[%clk 0:02:57]}  Be7 {[%clk 0:02:56]} 7. c3 {[%clk 0:02:57]}  Qc7 {[%clk 0:02:55]} 8. d4 {[%clk 0:02:58]}  b6 {[%clk 0:02:55]} 9. e5 {[%clk 0:02:52]}  dxe5 {[%clk 0:02:54]} 10. dxe5 {[%clk 0:02:53]}  Nd7 {[%clk 0:02:53]} 11. Bf4 {[%clk 0:02:51]}  Bb7 {[%clk 0:02:53]} 12. h4 {[%clk 0:02:52]}  h6 {[%clk 0:02:53]} 13. h5 {[%clk 0:02:51]}  O-O-O {[%clk 0:02:51]} 14. Na3 {[%clk 0:02:51]}  a6 {[%clk 0:02:48]} 15. Nc4 {[%clk 0:02:51]}  Kb8 {[%clk 0:02:47]} 16. a4 {[%clk 0:02:48]}  Ka7 {[%clk 0:02:47]} 17. Nd6 {[%clk 0:02:45]}  Rhf8 {[%clk 0:02:40]} 18. Nb5+ {[%clk 0:02:43]}  axb5 {[%clk 0:02:39]} 19. axb5+ {[%clk 0:02:44]}  Kb8 {[%clk 0:02:38]} 20. bxc6 {[%clk 0:02:44]}  Bxc6 {[%clk 0:02:38]} 21. Qa6 {[%clk 0:02:43]}  Qb7 {[%clk 0:02:37]} 22. Nd2 {[%clk 0:02:38]}  Bxg2 {[%clk 0:02:32]} 23. Qxb7+ {[%clk 0:02:31]}  Bxb7 {[%clk 0:02:30]} 24. Nc4 {[%clk 0:02:32]}  Kc7 {[%clk 0:02:26]} 25. Rfd1 {[%clk 0:02:24]}  Ra8 {[%clk 0:02:22]} 26. Rxd7+ {[%clk 0:02:22]}  Kxd7 {[%clk 0:02:20]} 27. Nxb6+ {[%clk 0:02:23]}  Kc6 {[%clk 0:02:20]} 28. Nxa8 {[%clk 0:02:23]}  Rxa8 {[%clk 0:02:20]} 29. Rd1 {[%clk 0:02:23]}  Rd8 {[%clk 0:02:20]} 30. Ra1 {[%clk 0:02:20]}  Bg5 {[%clk 0:02:17]} 31. Bxg5 {[%clk 0:02:18]}  hxg5 {[%clk 0:02:18]} 32. Kg2 {[%clk 0:02:18]}  Kc7+ {[%clk 0:02:14]} 33. Kh3 {[%clk 0:02:18]}  Rd2 {[%clk 0:02:14]} 34. Kg4 {[%clk 0:02:16]}  Rxf2 {[%clk 0:02:12]} 35. Kxg5 {[%clk 0:02:16]}  Rxb2 {[%clk 0:02:12]} 36. Rf1 {[%clk 0:02:10]}  Rg2 {[%clk 0:01:50]} 37. Rxf7+ {[%clk 0:02:09]}  Kb6 {[%clk 0:01:50]} 38. Kh4 {[%clk 0:01:55]}  Be4 {[%clk 0:01:46]} 39. Rxg7 {[%clk 0:01:52]}  Kb5 {[%clk 0:01:46]} 40. Kh3 {[%clk 0:01:37]}  Rc2 {[%clk 0:01:44]} 41. h6 {[%clk 0:01:29]}  Rxc3 {[%clk 0:01:41]} 42. h7 {[%clk 0:01:22]}  Rc1 {[%clk 0:01:39]} 43. Kg4 {[%clk 0:01:06]}  Rh1 {[%clk 0:01:34]} 44. Kf4 {[%clk 0:01:05]}  Bxh7 {[%clk 0:01:33]} 45. Re7 {[%clk 0:01:04]}  Bf5 {[%clk 0:01:31]} 46. g4 {[%clk 0:01:05]}  Rh4 {[%clk 0:01:31]} 0-1


[Site "https://www.chess.com"]

[Event "Titled Tuesday Blitz July 13 2021"]
[White "Bilych, Olexiy"]
[Black "Bortnyk, Olexandr"]
[WhiteFideId "14156504"]
[BlackFideId "14120828"]
[WhiteElo "2246"]
[BlackElo "2723"]
[Result "1/2-1/2"]
[Round "04"]
[TimeControl "180+1"]
[Date "2021.07.13"]
[WhiteClock "0:00:25"]
[BlackClock "0:00:11"]

1. e4 {[%clk 0:03:00]}  Nf6 {[%clk 0:02:59]} 2. e5 {[%clk 0:03:00]}  Nd5 {[%clk 0:03:00]} 3. c4 {[%clk 0:03:01]}  Nb6 {[%clk 0:03:00]} 4. d4 {[%clk 0:03:01]}  d6 {[%clk 0:03:00]} 5. exd6 {[%clk 0:03:02]}  cxd6 {[%clk 0:02:58]} 6. Nc3 {[%clk 0:03:02]}  g6 {[%clk 0:02:59]} 7. Be3 {[%clk 0:03:03]}  Bg7 {[%clk 0:02:58]} 8. Rc1 {[%clk 0:03:04]}  Bf5 {[%clk 0:02:57]} 9. b3 {[%clk 0:03:03]}  O-O {[%clk 0:02:54]} 10. g4 {[%clk 0:03:03]}  Bd7 {[%clk 0:02:52]} 11. Bg2 {[%clk 0:03:01]}  Nc6 {[%clk 0:02:41]} 12. d5 {[%clk 0:03:02]}  Ne5 {[%clk 0:02:40]} 13. h3 {[%clk 0:03:02]}  f5 {[%clk 0:02:40]} 14. f4 {[%clk 0:03:03]}  Nf7 {[%clk 0:02:35]} 15. g5 {[%clk 0:02:56]}  Re8 {[%clk 0:02:25]} 16. Nge2 {[%clk 0:02:50]}  e5 {[%clk 0:02:19]} 17. dxe6 {[%clk 0:02:50]}  Rxe6 {[%clk 0:02:19]} 18. Bd4 {[%clk 0:02:49]}  Bc6 {[%clk 0:02:18]} 19. O-O {[%clk 0:02:43]}  Bxg2 {[%clk 0:02:13]} 20. Kxg2 {[%clk 0:02:43]}  h6 {[%clk 0:01:48]} 21. Bxg7 {[%clk 0:02:37]}  Kxg7 {[%clk 0:01:49]} 22. Nd4 {[%clk 0:02:36]}  Re3 {[%clk 0:01:44]} 23. Qd2 {[%clk 0:02:30]}  Qe7 {[%clk 0:01:22]} 24. Rce1 {[%clk 0:02:27]}  Re8 {[%clk 0:01:22]} 25. Kf2 {[%clk 0:02:24]}  Rxe1 {[%clk 0:01:11]} 26. Rxe1 {[%clk 0:02:24]}  Qxe1+ {[%clk 0:01:09]} 27. Qxe1 {[%clk 0:02:25]}  Rxe1 {[%clk 0:01:09]} 28. gxh6+ {[%clk 0:02:25]}  Kxh6 {[%clk 0:01:09]} 29. Kxe1 {[%clk 0:02:25]}  a6 {[%clk 0:01:02]} 30. Kf2 {[%clk 0:02:24]}  Nd7 {[%clk 0:01:02]} 31. b4 {[%clk 0:01:54]}  Nb6 {[%clk 0:00:43]} 32. c5 {[%clk 0:01:54]}  dxc5 {[%clk 0:00:44]} 33. bxc5 {[%clk 0:01:55]}  Nc4 {[%clk 0:00:45]} 34. a4 {[%clk 0:01:34]}  Kh5 {[%clk 0:00:43]} 35. Kg3 {[%clk 0:01:29]}  Nd8 {[%clk 0:00:39]} 36. Nd5 {[%clk 0:01:23]}  Nd2 {[%clk 0:00:38]} 37. Nf6+ {[%clk 0:01:23]}  Kh6 {[%clk 0:00:38]} 38. h4 {[%clk 0:01:14]}  Kg7 {[%clk 0:00:36]} 39. Ne8+ {[%clk 0:01:14]}  Kf8 {[%clk 0:00:32]} 40. Nd6 {[%clk 0:01:14]}  Ke7 {[%clk 0:00:30]} 41. h5 {[%clk 0:01:14]}  gxh5 {[%clk 0:00:30]} 42. N4xf5+ {[%clk 0:01:11]}  Ke6 {[%clk 0:00:28]} 43. Ne3 {[%clk 0:01:00]}  b6 {[%clk 0:00:22]} 44. f5+ {[%clk 0:00:55]}  Ke5 {[%clk 0:00:22]} 45. Ndc4+ {[%clk 0:00:49]}  Nxc4 {[%clk 0:00:20]} 46. Nxc4+ {[%clk 0:00:50]}  Kxf5 {[%clk 0:00:19]} 47. cxb6 {[%clk 0:00:46]}  Nb7 {[%clk 0:00:19]} 48. Kh4 {[%clk 0:00:30]}  Ke4 {[%clk 0:00:20]} 49. Kxh5 {[%clk 0:00:30]}  Kd4 {[%clk 0:00:20]} 50. Nd2 {[%clk 0:00:27]}  Kc3 {[%clk 0:00:19]} 51. Ne4+ {[%clk 0:00:24]}  Kb4 {[%clk 0:00:20]} 52. Kg4 {[%clk 0:00:25]}  Kxa4 {[%clk 0:00:20]} 53. Kf3 {[%clk 0:00:25]}  Kb3 {[%clk 0:00:21]} 54. Ke2 {[%clk 0:00:24]}  a5 {[%clk 0:00:21]} 55. Kd1 {[%clk 0:00:24]}  Kb2 {[%clk 0:00:20]} 56. Nd2 {[%clk 0:00:22]}  a4 {[%clk 0:00:20]} 57. Nc4+ {[%clk 0:00:22]}  Kb3 {[%clk 0:00:21]} 58. Nd2+ {[%clk 0:00:22]}  Kb2 {[%clk 0:00:21]} 59. Nc4+ {[%clk 0:00:22]}  Kc3 {[%clk 0:00:22]} 60. Na3 {[%clk 0:00:21]}  Kb4 {[%clk 0:00:20]} 61. Nc2+ {[%clk 0:00:21]}  Kb5 {[%clk 0:00:18]} 62. Kc1 {[%clk 0:00:22]}  Kxb6 {[%clk 0:00:18]} 63. Kb2 {[%clk 0:00:22]}  Kb5 {[%clk 0:00:17]} 64. Na3+ {[%clk 0:00:22]}  Ka5 {[%clk 0:00:16]} 65. Nc4+ {[%clk 0:00:21]}  Kb4 {[%clk 0:00:17]} 66. Nb6 {[%clk 0:00:22]}  a3+ {[%clk 0:00:16]} 67. Ka2 {[%clk 0:00:22]}  Nd6 {[%clk 0:00:12]} 68. Nd5+ {[%clk 0:00:23]}  Ka4 {[%clk 0:00:12]} 69. Nc3+ {[%clk 0:00:23]}  Kb4 {[%clk 0:00:13]} 70. Nd5+ {[%clk 0:00:23]}  Ka4 {[%clk 0:00:13]} 71. Nc3+ {[%clk 0:00:24]}  Kb4 {[%clk 0:00:11]} 72. Nb1 {[%clk 0:00:24]}  Nb5 {[%clk 0:00:11]} 73. Nxa3 {[%clk 0:00:25]} 1/2-1/2


[Site "https://www.chess.com"]